Workbook

Sheet старш
A1: Школа | C1: МОБУ СОШ с. имени Восьмое Марта | F1: Утвердил: | G1: должность | H1: директор
A2: Типовое примерное меню приготавливаемых блюд | G2: фамилия | H2: Усманова А.З.
A3: Возрастная категория | E3: 12 лет и старше | G3: дата | I3: 10 | J3: 2023
H4: день | I4: месяц | J4: год
A5: Неделя | B5: День недели | C5: Прием пищи | D5: Раздел меню | E5: Блюда | F5: Вес блюда, г | G5: Белки | H5: Жиры | I5: Углеводы | J5: Калорийность | K5: № рецептуры | L5: Цена
A6: 1 | B6: 1 | C6: Завтрак | D6: гор.блюдо | E6: Котлеты мясные с томатным соусом , каша гречневая вязкая с маслом | F6: 285 | G6: 15.68 | H6: 19 | I6: 34.63 | J6: 354.56 | K6: 445,38 175 | L6: 64.50
D8: гор.напиток | E8: Чай с сахаром | F8: 200 | G8: 0 | H8: 0 | I8: 9,98 | J8: 39,9 | K8: 283.00 | L8: 2.2
D9: хлеб | E9: Хлеб пшеничный обогащенный витаминами для детского питания | F9: 40 | G9: 3.2 | H9: 0.4 | I9: 22 | J9: 104 | K9: 420.02 | L9: 3.50
D10: фрукты
D11: хлеб черн. | E11: Хлеб ржано-пшеничный для детского питания | F11: 30 | G11: 2.40 | H11: 0,3 | I11: 13,8 | J11: 66 | K11: 1,2 | L11: 3.00
D13: итого | F13: =F6+F7+F8+F9+F10+F11 -> 555.00 | G13: =G6+G7+G8+G9+G10+G11 -> 21.28 | H13: 19.70 | I13: 80.41 | J13: 564.46 | L13: 73.20
A14: =A6 -> 1 | B14: =B6 -> 1 | C14: Завтрак 2 | D14: фрукты
D17: итого | F17: =SUM(F14:F16) -> 0 | G17: =SUM(G14:G16) -> 0 | H17: 0 | I17: 0 | J17: 0 | L17: =SUM(L14:L22) -> 0
A18: =A6 -> 1 | B18: =B6 -> 1 | C18: Обед | D18: закуска | E18: Зеленый горошек отварные | F18: 100 | G18: 3 | H18: 0 | I18: 6 | J18: 37 | K18: 17\8 | L18: 10.00
D19: 1 блюдо | E19: Суп-лапша (вермишель) | F19: 250 | G19: 2.77 | H19: 8 | I19: 15.61 | J19: 121.35 | K19: 66.62 | L19: 16.85
D20: 2 блюдо | E20: Рыба , тушеная с овощами(филе минтая) | F20: 100 | G20: 10.18 | H20: 15 | I20: 2.17 | J20: 119.99 | K20: 80.62 | L20: 29.50
D21: гарнир | E21: Макаронные изделия отварные с маслом | F21: 190 | G21: 6.97 | H21: 4.44 | I21: 39 | J21: 245.99 | K21: 211.06 | L21: 15.6
D22: напиток | E22: Витаминизированный кисель | F22: 200 | G22: 0 | H22: 0 | I22: 23.5 | J22: 95 | K22: 305,11 | L22: 5.00
D23: хлеб бел. | E23: Хлеб пшеничный обогащенный витаминами для детского питания | F23: 50 | G23: 4 | H23: 0.5 | I23: 27.5 | J23: 130 | K23: 420.06 | L23: 4.00
D24: хлеб черн. | E24: Хлеб ржано-пшеничный для детского питания | F24: 40 | G24: 3.20 | H24: 0.4 | I24: 18.4 | J24: 88 | K24: 421.11 | L24: 3.50
D27: итого | F27: =F18+F19+F20+F21+F22+F23+F24 -> 930 | G27: =G18+G19+G20+G21+G22+G23+G24 -> 30.07 | H27: 28.54 | I27: 131.68 | J27: 837.00 | L27: 84.45
A28: =A6 -> 1 | B28: =B6 -> 1 | C28: Полдник | D28: булочное
D29: напиток
D32: итого | F32: =SUM(F28:F31) -> 0 | G32: =SUM(G28:G31) -> 0 | H32: 0 | I32: 0 | J32: 0
A33: =A6 -> 1 | B33: =B6 -> 1 | C33: Ужин | D33: гор.блюдо
D34: гарнир
D35: напиток
D36: хлеб
D39: итого | F39: =SUM(F33:F38) -> 0 | G39: =SUM(G33:G38) -> 0 | H39: 0 | I39: 0 | J39: 0 | L39: =SUM(L33:L41) -> 0
A40: =A6 -> 1 | B40: =B6 -> 1 | C40: Ужин 2 | D40: кисломол.
D41: булочное
D42: напиток
D43: фрукты
D46: итого | F46: =SUM(F40:F45) -> 0 | G46: =SUM(G40:G45) -> 0 | H46: 0 | I46: 0 | J46: 0 | L46: =SUM(L40:L48) -> 0
A47: =A6 -> 1 | B47: =B6 -> 1 | C47: Итого за день: | F47: =F13+F17+F27+F32+F39+F46 -> 1485 | G47: =G13+G17+G27+G32+G39+G46 -> 51.35 | H47: 48.24 | I47: 212.09 | J47: 1401.46 | L47: 157.65
A48: 1 | B48: 2 | C48: Завтрак | D48: гор.блюдо | E48: Пельмени отварные с соусом сметанный с томатом | F48: 230 | G48: 18 | H48: 20.9 | I48: 39.7 | J48: 414 | K48: 38/81 | L48: 49.35
D50: гор.напиток | E50: Чай с лимоном и сахаром | F50: 200 | G50: 0.06 | H50: 0.01 | I50: 10.19 | J50: 42.28 | K50: 285 | L50: 2.20
D51: хлеб | E51: Хлеб пшеничный обогащенный витаминами для детского питания | F51: 30 | G51: 2.4 | H51: 0.3 | I51: 16.5 | J51: 78 | K51: 1,1 | L51: 1.65
D52: фрукты | E52: Сок фруктовый | F52: 200 | G52: 1.00 | H52: 0.20 | I52: 20 | J52: 92.00 | K52: 86.12 | L52: 20.00
D55: итого | F55: =F48+F49+F50+F51+F52 -> 660 | G55: =SUM(G48:G54) -> 21.46 | H55: =SUM(H48:H54) -> 21.41 | I55: 86.59 | J55: 626.28 | L55: =SUM(L48:L54) -> 73.2
A56: =A48 -> 1 | B56: =B48 -> 2 | C56: Завтрак 2 | D56: фрукты
D59: итого | F59: =SUM(F56:F58) -> 0 | G59: =SUM(G56:G58) -> 0 | H59: 0 | I59: 0 | J59: 0 | L59: =SUM(L56:L64) -> 0
A60: =A48 -> 1 | B60: =B48 -> 2 | C60: Обед | D60: закуска | E60: Салат витаминный | F60: 100 | G60: 1.60 | H60: 4.60 | I60: 11.10 | J60: 90.00 | K60: 21.10 | L60: 12.00
D61: 1 блюдо | E61: Суп картофельный | F61: 250 | G61: 2.4 | H61: 2.5 | I61: 18.1 | J61: 107 | K61: 58 | L61: 16.00
D62: 2 блюдо | E62: Тефтели из говядины с томатным соусом | F62: 100 | G62: 14 | H62: 12.21 | I62: 8.85 | J62: 180.64 | K62: 506.25 | L62: 29.15
D63: гарнир | E63: Рис припущенный | F63: 180 | G63: 6 | H63: 7.88 | I63: 32 | J63: 250 | K63: 611.02 | L63: 19
D64: напиток | E64: Компот из смеси сухофруктов | F64: 200 | G64: 1 | H64: 0.09 | I64: 29 | J64: 128.6 | K64: 293 | L64: 5.00
D65: хлеб бел. | E65: Хлеб пшеничный обогащенный витаминами для детского питания | F65: 30 | G65: 2.4 | H65: 0.3 | I65: 16.5 | J65: 78 | K65: 1.1 | L65: 1.65
D66: хлеб черн. | E66: Хлеб ржано-пшеничный для детского питания | F66: 30 | G66: 2.40 | H66: 0,3 | I66: 13,8 | J66: 66 | K66: 1,2 | L66: 1.65
D69: итого | F69: =F60+F61+F62+F63+F64+F65+F66 -> 890 | G69: =G60+G61+G62+G63+G64+G65+G66 -> 29.80 | H69: 27.88 | I69: 129.35 | J69: 900.24 | L69: 84.45
A70: =A48 -> 1 | B70: =B48 -> 2 | C70: Полдник | D70: булочное
D71: напиток
D74: итого | F74: =SUM(F70:F73) -> 0 | G74: =SUM(G70:G73) -> 0 | H74: 0 | I74: 0 | J74: 0
A75: =A48 -> 1 | B75: =B48 -> 2 | C75: Ужин | D75: гор.блюдо
D76: гарнир
D77: напиток
D78: хлеб
D81: итого | F81: =SUM(F75:F80) -> 0 | G81: =SUM(G75:G80) -> 0 | H81: 0 | I81: 0 | J81: 0 | L81: =SUM(L75:L83) -> 0
A82: =A48 -> 1 | B82: =B48 -> 2 | C82: Ужин 2 | D82: кисломол.
D83: булочное
D84: напиток
D85: фрукты
D88: итого | F88: =SUM(F82:F87) -> 0 | G88: =SUM(G82:G87) -> 0 | H88: 0 | I88: 0 | J88: 0 | L88: =SUM(L82:L90) -> 0
A89: =A48 -> 1 | B89: =B48 -> 2 | C89: Итого за день: | F89: =F55+F59+F69+F74+F81+F88 -> 1550 | G89: =G55+G59+G69+G74+G81+G88 -> 51.26 | H89: 49.29 | I89: 215.94 | J89: 1526.52 | L89: 157.65
A90: 1 | B90: 3 | C90: Завтрак | D90: гор.блюдо | E90: Суп-лапша(вермишель) с мясом птицы(филе) | F90: 280 | G90: 13 | H90: 15.71 | I90: 21 | J90: 235 | K90: 66.65 | L90: 50.20
D92: гор.напиток | E92: Витаминизированный кисель | F92: 200 | G92: 0 | H92: 0 | I92: 23.5 | J92: 95 | K92: 305.11 | L92: 5.00
D93: хлеб | E93: Бутерброд с маслом и сыром | F93: 45 | G93: 5.07 | H93: 6.59 | I93: 16.57 | J93: 146.05 | K93: 1.3 | L93: 15.00
D94: фрукты
D95: хлеб черн. | E95: Хлеб ржано-пшеничный для детского питания | F95: 40 | G95: 3.20 | H95: 0.4 | I95: 18.4 | J95: 88 | K95: 421.11 | L95: 3.00
D97: итого | F97: =F90+F91+F92+F93+F94+F95 -> 565 | G97: =G90+G91+G92+G93+G94+G95 -> 21.27 | H97: 22.7 | I97: 79.47 | J97: 564.05 | L97: 73.2
A98: =A90 -> 1 | B98: =B90 -> 3 | C98: Завтрак 2 | D98: фрукты
D101: итого | F101: =SUM(F98:F100) -> 0 | G101: =SUM(G98:G100) -> 0 | H101: 0 | I101: 0 | J101: 0 | L101: =SUM(L98:L106) -> 0
A102: =A90 -> 1 | B102: =B90 -> 3 | C102: Обед | D102: закуска | E102: Салат "Пестрый" | F102: 100 | G102: 1 | H102: 5 | I102: 10 | J102: 105 | K102: 33.10 | L102: 12.00
D103: 1 блюдо | E103: Суп картофельный с горохом и гренками | F103: 270 | G103: 8.47 | H103: 4.87 | I103: 37.09 | J103: 252 | K103: 129.14 | L103: 16.50
D104: 2 блюдо | E104: Жаркое по-домашнему из мяса птицы (филе) | F104: 200 | G104: 14 | H104: 18 | I104: 23.44 | J104: 253 | K104: 684.1 | L104: 46.30
D105: гарнир
D106: напиток | E106: Чай с сахаром | F106: 200 | G106: 0 | H106: 0 | I106: 9.98 | J106: 39.9 | K106: 283 | L106: 5.00
D107: хлеб бел. | E107: Хлеб пшеничный обогащенный витаминами для детского питания | F107: 40 | G107: 3.2 | H107: 0.4 | I107: 22 | J107: 104 | K107: 420.02 | L107: 3.00
D108: хлеб черн. | E108: Хлеб ржано-пшеничный для детского питания | F108: 30 | G108: 2.40 | H108: 0,3 | I108: 13,8 | J108: 66 | K108: 1,2 | L108: 1.65
D111: итого | F111: =F102+F103+F104+F105+F106+F107+F108 -> 840 | G111: =G102+G103+G104+G105+G106+G107+G108 -> 28.87 | H111: 28.57 | I111: 116.31 | J111: 819.90 | L111: 84.45
A112: =A90 -> 1 | B112: =B90 -> 3 | C112: Полдник | D112: булочное
D113: напиток
D116: итого | F116: =SUM(F112:F115) -> 0 | G116: =SUM(G112:G115) -> 0 | H116: 0 | I116: 0 | J116: 0 | L116: 0
A117: =A90 -> 1 | B117: =B90 -> 3 | C117: Ужин | D117: гор.блюдо
D118: гарнир
D119: напиток
D120: хлеб
D123: итого | F123: =SUM(F117:F122) -> 0 | G123: =SUM(G117:G122) -> 0 | H123: 0 | I123: 0 | J123: 0 | L123: =SUM(L117:L125) -> 0
A124: =A90 -> 1 | B124: =B90 -> 3 | C124: Ужин 2 | D124: кисломол.
D125: булочное
D126: напиток
D127: фрукты
D130: итого | F130: =SUM(F124:F129) -> 0 | G130: =SUM(G124:G129) -> 0 | H130: 0 | I130: 0 | J130: 0 | L130: =SUM(L124:L132) -> 0
A131: =A90 -> 1 | B131: =B90 -> 3 | C131: Итого за день: | F131: =F97+F101+F111+F116+F123+F130 -> 1405 | G131: =G97+G101+G111+G116+G123+G130 -> 50.14 | H131: 51.27 | I131: 195.78 | J131: 1383.95 | L131: 157.65
A132: 1 | B132: 4 | C132: Завтрак | D132: гор.блюдо | E132: Плов из мяса птицы (филе) | F132: 200 | G132: 14 | H132: 16 | I132: 30.3 | J132: 296 | K132: 131.81 | L132: 48.70
D134: гор.напиток | E134: Чай витаминизированный | F134: 200 | G134: 0 | H134: 0 | I134: 9.7 | J134: 39 | K134: 282.11 | L134: 2.20
D135: хлеб | E135: Хлеб пшеничный обогащенный витаминами для детского питания | F135: 30 | G135: 2.4 | H135: 0.3 | I135: 16.5 | J135: 78 | K135: 1,1 | L135: 1.65
D136: фрукты
D137: булочное | E137: Хлеб ржано-пшеничный для детского питания | F137: 30 | G137: 2.40 | H137: 0,3 | I137: 13,8 | J137: 66 | K137: 1.2 | L137: 1.65
D138: закуска | E138: Салат из белокочанной капусты с морковью | F138: 100 | G138: 2.3 | H138: 5.13 | I138: 11.68 | J138: 103.53 | K138: 2.11 | L138: 19.00
D139: итого | F139: =F132+F133+F134+F135+F136+F137+F138 -> 560 | G139: =G132+G133+G134+G135+G136+G137+G138 -> 21.1 | H139: 21.73 | I139: 81.98 | J139: 582.53 | L139: 73.2
A140: =A132 -> 1 | B140: =B132 -> 4 | C140: Завтрак 2 | D140: фрукты
D143: итого | F143: =SUM(F140:F142) -> 0 | G143: =SUM(G140:G142) -> 0 | H143: 0 | I143: 0 | J143: 0 | L143: =SUM(L140:L148) -> 0
A144: =A132 -> 1 | B144: =B132 -> 4 | C144: Обед | D144: закуска | E144: Маринад овощной без томата | F144: 100 | G144: 1.20 | H144: 8.90 | I144: 9.80 | J144: 123.00 | K144: 516.3 | L144: 12.00
D145: 1 блюдо | E145: Щи из свежей капусты со сметаной | F145: 260 | G145: 2.03 | H145: 5.7 | I145: 23.5 | J145: 104.2 | K145: 53.05 | L145: 16.50
D146: 2 блюдо | E146: Рагу овощное с отварным мясом | F146: 200 | G146: 16.21 | H146: 16.2 | I146: 19 | J146: 305 | K146: 118.1 | L146: 42.95
D147: гарнир
D148: напиток | E148: Компот из свежих плодов | F148: 200 | G148: 0.16 | H148: 0.16 | I148: 22 | J148: 68 | K148: 294.01 | L148: 5.00
D149: хлеб бел. | E149: Хлеб пшеничный обогащенный витаминами для детского питания | F149: 40 | G149: 6 | H149: 0.5 | I149: 27.5 | J149: 130 | K149: 420.02 | L149: 4.00
D150: хлеб черн. | E150: Хлеб ржано-пшеничный для детского питания | F150: 40 | G150: 2.40 | H150: 0.3 | I150: 13.8 | J150: 88 | K150: 421.11 | L150: 4.00
D153: итого | F153: =F144+F145+F146+F147+F148+F149+F150 -> 840.00 | G153: =G144+G145+G146+G147+G148+G149+G150 -> 28.00 | H153: 31.76 | I153: 115.60 | J153: 818.20 | L153: 84.45
A154: =A132 -> 1 | B154: =B132 -> 4 | C154: Полдник | D154: булочное
D155: напиток
D158: итого | F158: =SUM(F154:F157) -> 0 | G158: =SUM(G154:G157) -> 0 | H158: 0 | I158: 0 | J158: 0 | L158: 0
A159: =A132 -> 1 | B159: =B132 -> 4 | C159: Ужин | D159: гор.блюдо
D160: гарнир
D161: напиток
D162: хлеб
D165: итого | F165: =SUM(F159:F164) -> 0 | G165: =SUM(G159:G164) -> 0 | H165: 0 | I165: 0 | J165: 0 | L165: =SUM(L159:L167) -> 0
A166: =A132 -> 1 | B166: =B132 -> 4 | C166: Ужин 2 | D166: кисломол.
D167: булочное
D168: напиток
D169: фрукты
D172: итого | F172: =SUM(F166:F171) -> 0 | G172: =SUM(G166:G171) -> 0 | H172: 0 | I172: 0 | J172: 0 | L172: =SUM(L166:L174) -> 0
A173: =A132 -> 1 | B173: =B132 -> 4 | C173: Итого за день: | F173: =F139+F143+F153+F158+F165+F172 -> 1400 | G173: =G139+G143+G153+G158+G165+G172 -> 49.1 | H173: 53.49 | I173: 197.58 | J173: 1400.73 | L173: 157.65
A174: 1 | B174: 5 | C174: Завтрак | D174: гор.блюдо | E174: Каша молочная "Дружба" с маслом | F174: 210 | G174: 12 | H174: 19 | I174: 35.61 | J174: 245 | K174: 493.21 | L174: 39
D176: гор.напиток | E176: Компот из смеси сухофруктов | F176: 200 | G176: 0.44 | H176: 0.09 | I176: 25 | J176: 128.6 | K176: 293 | L176: 2.2
D177: хлеб | E177: Хлеб пшеничный обогащенный витаминами для детского питания | F177: 40 | G177: 3.2 | H177: 0.4 | I177: 18 | J177: 104 | K177: 420.02 | L177: 3
D178: фрукты
D179: закуска | E179: Кисломолочный продукт для детского питания | F179: 100 | G179: 3 | H179: 2.5 | I179: 12.6 | J179: 84 | K179: 476.01 | L179: 29
D181: итого | F181: =SUM(F174:F180) -> 550 | G181: =SUM(G174:G180) -> 18.64 | H181: 21.99 | I181: 91.21 | J181: 561.6 | L181: =SUM(L174:L180) -> 73.2
A182: =A174 -> 1 | B182: =B174 -> 5 | C182: Завтрак 2 | D182: фрукты
D185: итого | F185: =SUM(F182:F184) -> 0 | G185: =SUM(G182:G184) -> 0 | H185: 0 | I185: 0 | J185: 0 | L185: =SUM(L182:L190) -> 0
A186: =A174 -> 1 | B186: =B174 -> 5 | C186: Обед | D186: закуска | E186: Салат из моркови | F186: 100 | G186: 1 | H186: 5 | I186: 15 | J186: 100 | K186: 17.4 | L186: 8
D187: 1 блюдо | E187: Борщ с капустой и картофелем со сметаной | F187: 260 | G187: 2.03 | H187: 5.67 | I187: 10 | J187: 100.62 | K187: 56.13 | L187: 15.6
D188: 2 блюдо | E188: Филе грудки , припущенное в томатном соусе | F188: 100 | G188: 16.2 | H188: 15.3 | I188: 3.25 | J188: 155.55 | K188: 233.24 | L188: 33.2
D189: гарнир | E189: Каша гречневая рассыпчатая с маслом | F189: 185 | G189: 5.6 | H189: 4.3 | I189: 49 | J189: 303.55 | K189: 497.03 | L189: 18
D190: напиток | E190: Чай с лимоном с сахаром | F190: 200 | G190: 0.06 | H190: 0.01 | I190: 10.19 | J190: 42.28 | K190: 285 | L190: 5
D191: хлеб бел. | E191: Хлеб пшеничный обогащенный витаминами для детского питания | F191: 30 | G191: 2.4 | H191: 0.3 | I191: 16.5 | J191: 78 | K191: 1.1 | L191: 3
D192: хлеб черн. | E192: Хлеб ржано-пшеничный для детского питания | F192: 30 | G192: 2.4 | H192: 0.3 | I192: 13.8 | J192: 66 | K192: 1.2 | L192: 1.65
D195: итого | F195: =SUM(F186:F194) -> 905 | G195: =SUM(G186:G194) -> 29.69 | H195: 30.88 | I195: 117.74 | J195: 846 | L195: 72.54
A196: =A174 -> 1 | B196: =B174 -> 5 | C196: Полдник | D196: булочное
D197: напиток
D200: итого | F200: =SUM(F196:F199) -> 0 | G200: =SUM(G196:G199) -> 0 | H200: 0 | I200: 0 | J200: 0 | L200: 0
A201: =A174 -> 1 | B201: =B174 -> 5 | C201: Ужин | D201: гор.блюдо
D202: гарнир
D203: напиток
D204: хлеб
D207: итого | F207: =SUM(F201:F206) -> 0 | G207: =SUM(G201:G206) -> 0 | H207: 0 | I207: 0 | J207: 0 | L207: =SUM(L201:L209) -> 0
A208: =A174 -> 1 | B208: =B174 -> 5 | C208: Ужин 2 | D208: кисломол.
D209: булочное
D210: напиток
D211: фрукты
D214: итого | F214: =SUM(F208:F213) -> 0 | G214: =SUM(G208:G213) -> 0 | H214: 0 | I214: 0 | J214: 0 | L214: =SUM(L208:L216) -> 0
A215: =A174 -> 1 | B215: =B174 -> 5 | C215: Итого за день: | F215: =F181+F185+F195+F200+F207+F214 -> 1455 | G215: =G181+G185+G195+G200+G207+G214 -> 48.33 | H215: 52.87 | I215: 208.95 | J215: 1407.6 | L215: 157.65
A216: 1 | B216: 6 | C216: Завтрак | D216: гор.блюдо | E216: Макаронные изделия отварные с томатным соусом | F216: 220 | G216: 14 | H216: 14.6 | I216: 38.8 | J216: 285.05 | K216: 211.07 | L216: 42.35
D218: гор.напиток | E218: Чай с сахаром | F218: 200 | G218: 0 | H218: 0 | I218: 9.98 | J218: 39.9 | K218: 283 | L218: 2.2
D219: хлеб | E219: Бутерброд с сыром | F219: 40 | G219: 5.03 | H219: 5 | I219: 16.5 | J219: 130 | K219: 1.5 | L219: 8.65
D220: фрукты
D221: напиток | E221: Сок фруктовый | F221: 200 | G221: 1 | H221: 0.2 | I221: 20.2 | J221: 92 | K221: 86.12 | L221: 20
D223: итого | F223: =F216+F217+F218+F219+F220+F221 -> 660 | G223: =SUM(G216:G222) -> 20.03 | H223: 19.8 | I223: 85.48 | J223: 546.95 | L223: =SUM(L216:L222) -> 73.2
A224: =A216 -> 1 | B224: =B216 -> 6 | C224: Завтрак 2 | D224: фрукты
D227: итого | F227: =SUM(F224:F226) -> 0 | G227: =SUM(G224:G226) -> 0 | H227: 0 | I227: 0 | J227: 0 | L227: =SUM(L224:L232) -> 0
A228: =A216 -> 1 | B228: =B216 -> 6 | C228: Обед | D228: закуска | E228: Свекла отварная порционная | F228: 100 | G228: 2 | H228: 0 | I228: 10 | J228: 48 | K228: 17.50 | L228: 15.00
D229: 1 блюдо | E229: Суп крестьянский с пшеном со сметаной | F229: 260 | G229: 2.1 | H229: 5.1 | I229: 14.5 | J229: 135 | K229: 65 | L229: 16.80
D230: 2 блюдо | E230: Плов из мяса птицы (филе) | F230: 200 | G230: 15 | H230: 18.85 | I230: 32.3 | J230: 325 | K230: 131.81 | L230: 41.50
D231: гарнир
D232: напиток | E232: Какао с молоком | F232: 200 | G232: 3.6 | H232: 3.3 | I232: 13.7 | J232: 98 | K232: 289 | L232: 5.00
D233: хлеб бел. | E233: Хлеб пшеничный обогащенный витаминами для детского питания | F233: 50 | G233: 4 | H233: 0.5 | I233: 27.5 | J233: 130 | K233: 420.06 | L233: 4.50
D234: хлеб черн. | E234: Хлеб ржано-пшеничный для детского питания | F234: 40 | G234: 3.20 | H234: 0.4 | I234: 18.4 | J234: 88 | K234: 421.11 | L234: 1.65
D237: итого | F237: =F228+F229+F230+F231+F232+F233+F234 -> 850.00 | G237: =G228+G229+G230+G231+G232+G233+G234 -> 29.90 | H237: 28.15 | I237: 116.40 | J237: 824.00 | L237: 84.45
A238: =A216 -> 1 | B238: =B216 -> 6 | C238: Полдник | D238: булочное
D239: напиток
D242: итого | F242: =SUM(F238:F241) -> 0 | G242: =SUM(G238:G241) -> 0 | H242: 0 | I242: 0 | J242: 0 | L242: 0
A243: =A216 -> 1 | B243: =B216 -> 6 | C243: Ужин | D243: гор.блюдо
D244: гарнир
D245: напиток
D246: хлеб
D249: итого | F249: =SUM(F243:F248) -> 0 | G249: =SUM(G243:G248) -> 0 | H249: 0 | I249: 0 | J249: 0 | L249: =SUM(L243:L251) -> 0
A250: =A216 -> 1 | B250: =B216 -> 6 | C250: Ужин 2 | D250: кисломол.
D251: булочное
D252: напиток
D253: фрукты
D256: итого | F256: =SUM(F250:F255) -> 0 | G256: =SUM(G250:G255) -> 0 | H256: 0 | I256: 0 | J256: 0 | L256: =SUM(L250:L258) -> 0
A257: =A216 -> 1 | B257: =B216 -> 6 | C257: Итого за день: | F257: =F223+F227+F237+F242+F249+F256 -> 1510 | G257: =G223+G227+G237+G242+G249+G256 -> 49.93 | H257: 47.95 | I257: 201.88 | J257: 1370.95 | L257: 157.65
A258: 1 | B258: 7 | C258: Завтрак | D258: гор.блюдо | E258: Тефтели из говядины с томатным соусом, каша гречневая вязкая с маслом | F258: 285 | G258: 14.47 | H258: 19 | I258: 34.61 | J258: 352.29 | K258: 506,25 175, | L258: 66.35
D260: гор.напиток | E260: Чай с лимоном сахаром | F260: 200 | G260: 0.06 | H260: 0.01 | I260: 10.19 | J260: 42.28 | K260: 285 | L260: 2.2
D261: хлеб | E261: Хлеб пшеничный обогащенный витаминами для детского питания | F261: 40 | G261: 3.2 | H261: 0.4 | I261: 22 | J261: 104 | K261: 420.02 | L261: 3
D262: фрукты
D263: булочное
D264: хлеб черн. | E264: Хлеб ржано-пшеничный для детского питания | F264: 30 | G264: 2.40 | H264: 0,3 | I264: 13,8 | J264: 66 | K264: 1.2 | L264: 1.65
D265: итого | F265: =F258+F259+F260+F261+F262+F263+F264 -> 555 | G265: =G258+G259+G260+G261+G262+G263+G264 -> 20.13 | H265: 19.71 | I265: 80.6 | J265: 564.57 | L265: 73.2
A266: =A258 -> 1 | B266: =B258 -> 7 | C266: Завтрак 2 | D266: фрукты
D269: итого | F269: =SUM(F266:F268) -> 0 | G269: =SUM(G266:G268) -> 0 | H269: 0 | I269: 0 | J269: 0 | L269: =SUM(L266:L274) -> 0
A270: =A258 -> 1 | B270: =B258 -> 7 | C270: Обед | D270: закуска | E270: Маринад овощной без томата | F270: 100 | G270: 1.20 | H270: 5.60 | I270: 9.80 | J270: 123.00 | K270: 516.3 | L270: 12.00
D271: 1 блюдо | E271: Суп-лапша (вермишель) | F271: 250 | G271: 2.77 | H271: 3.5 | I271: 15.61 | J271: 121.35 | K271: 66.62 | L271: 14.00
D272: 2 блюдо | E272: Филе грудки , припущенное в томатном соусе | F272: 100 | G272: 16 | H272: 14 | I272: 3.25 | J272: 155.55 | K272: 233.24 | L272: 32.15
D273: гарнир | E273: Рис припущенный | F273: 180 | G273: 4.55 | H273: 7.88 | I273: 42 | J273: 250 | K273: 611.02 | L273: 18
D274: напиток | E274: Компот из смеси сухофруктов | F274: 200 | G274: 0.44 | H274: 0.09 | I274: 29 | J274: 128.6 | K274: 293 | L274: 5.00
D275: хлеб бел. | E275: Хлеб пшеничный обогащенный витаминами для детского питания | F275: 30 | G275: 2.4 | H275: 0.3 | I275: 16.5 | J275: 78 | K275: 1.1 | L275: 1.65
... 226 more rows
